Workbook

Sheet Tabulky
A2: Skupina A - kurt | C2: Weigert Matyáš | D2: Havlík Jan | E2: Svoboda Adéla | F2: Klokočková Sára | G2: Pořadí | H2: Počet vítězství
A3: A1 | B3: Weigert Matyáš | D3: 4-2 | E3: 4-3 | F3: 4-0 | G3: 1. | H3: 3
A4: A2 | B4: Havlík Jan | C4: 2-4 | E4: 4-2 | F4: 4-0 | G4: 2. | H4: 2
A5: A3 | B5: Svoboda Adéla | C5: 3-4 | D5: 2-4 | F5: 4-2 | G5: 3. | H5: 1
A6: A4 | B6: Klokočková Sára | C6: 0-4 | D6: 0-4 | E6: 2-4 | G6: 4. | H6: 0
A7: A5 | B7: 0
A9: Skupina B - kurt | C9: Marešová Beata | D9: Koláček Lukáš | E9: Kynčl Jakub | F9: Kubíková Kateřina | G9: Pořadí | H9: Počet vítězství
A10: B1 | B10: Marešová Beata | D10: 4-0 | E10: 4-3 | F10: 4-1 | G10: 1. | H10: 3
A11: B2 | B11: Koláček Lukáš | C11: 0-4 | E11: 0-4 | F11: 0-4 | G11: 4. | H11: 0
A12: B3 | B12: Kynčl Jakub | C12: 3-4 | D12: 4-0 | F12: 4-0 | G12: 2. | H12: 2
A13: B4 | B13: Kubíková Kateřina | C13: 1-4 | D13: 4-0 | E13: 0-4 | G13: 3. | H13: 1
A14: B5 | B14: 0
A16: Skupina C - kurt | C16: Mrazek Richard | D16: Zeidlerová Elisabeth | E16: Zikmund Adam | F16: Šebístková Tereza | G16: Pořadí | H16: Počet vítězství
A17: C1 | B17: Mrazek Richard | D17: 4-0 | E17: 0-4 | F17: 3-4 | G17: 3. | H17: 1
A18: C2 | B18: Zeidlerová Elisabeth | C18: 0-4 | E18: 0-4 | F18: 0-4 | G18: 4. | H18: 0
A19: C3 | B19: Zikmund Adam | C19: 4-0 | D19: 4-0 | F19: 4-0 | G19: 1. | H19: 3
A20: C4 | B20: Šebístková Tereza | C20: 4-3 | D20: 4-0 | E20: 0-4 | G20: 2. | H20: 2
A21: C5 | B21: 0
A23: Skupina D - kurt | C23: Michna Lisa | D23: Dvořák Jan | E23: Toman Bruno | F23: Plzáková Dominika | G23: Pořadí | H23: Počet vítězství
A24: D1 | B24: Michna Lisa | D24: 4-1 | E24: 4-2 | F24: 4-0 | G24: 1. | H24: 3
A25: D2 | B25: Dvořák Jan | C25: 1-4 | E25: 4-1 | F25: 4-0 | G25: 2. | H25: 2
A26: D3 | B26: Toman Bruno | C26: 2-4 | D26: 1-4 | F26: 4-1 | G26: 3. | H26: 1
A27: D4 | B27: Plzáková Dominika | C27: 0-4 | D27: 0-4 | E27: 1-4 | G27: 4. | H27: 0
A28: D5 | B28: 0
A30: Skupina E - kurt | C30: Blaščík Matyáš Dominik | D30: Říha Marek | E30: Čihák Jakub | F30: Zýka Andreas | G30: Pořadí | H30: Počet vítězství
A31: E1 | B31: Blaščík Matyáš Dominik | D31: 4-0 | E31: 4-0 | F31: 4-1 | G31: 1. | H31: 3
A32: E2 | B32: Říha Marek | C32: 0-4 | E32: 4-2 | F32: 1-4 | G32: 3. | H32: 1
A33: E3 | B33: Čihák Jakub | C33: 0-4 | D33: 2-4 | F33: 0-4 | G33: 4. | H33: 0
A34: E4 | B34: Zýka Andreas | C34: 1-4 | D34: 4-1 | E34: 4-0 | G34: 2. | H34: 2
A35: E5 | B35: 0
A37: Skupina F - kurt | C37: 0 | D37: 0 | E37: 0 | F37: 0 | G37: Pořadí | H37: Počet vítězství
A38: F1 | B38: 0 | D38: 0 | E38: 0 | F38: 0
A39: F2 | B39: 0 | E39: 0 | F39: 0
A40: F3 | B40: 0 | F40: 0
A41: F4 | B41: 0
A42: F5 | B42: 0
A44: Skupina G - kurt | C44: 0 | D44: 0 | E44: 0 | F44: 0 | G44: Pořadí | H44: Počet vítězství
A45: G1 | B45: 0 | D45: 0 | E45: 0 | F45: 0
A46: G2 | B46: 0 | E46: 0 | F46: 0
A47: G3 | B47: 0 | F47: 0
A48: G4 | B48: 0
A49: G5 | B49: 0
A51: Skupina H - kurt | C51: 0 | D51: 0 | E51: 0 | F51: 0 | G51: Pořadí | H51: Počet vítězství
A52: H1 | B52: 0 | D52: 0 | E52: 0 | F52: 0
A53: H2 | B53: 0 | E53: 0 | F53: 0
A54: H3 | B54: 0 | F54: 0
A55: H4 | B55: 0
A56: H5 | B56: 0
A58: Skupina I - kurt | C58: 0 | D58: 0 | E58: 0 | F58: 0 | G58: Pořadí | H58: Počet vítězství
A59: I1 | B59: 0 | D59: 0 | E59: 0 | F59: 0
A60: I2 | B60: 0 | E60: 0 | F60: 0
A61: I3 | B61: 0 | F61: 0
A62: I4 | B62: 0
A63: I5 | B63: 0
A65: Skupina J - kurt | C65: 0 | D65: 0 | E65: 0 | F65: 0 | G65: Pořadí | H65: Počet vítězství
A66: J1 | B66: 0 | D66: 0 | E66: 0 | F66: 0
A67: J2 | B67: 0 | E67: 0 | F67: 0
A68: J3 | B68: 0 | F68: 0
A69: J4 | B69: 0
A70: J5 | B70: 0

Sheet pavouk
A1: FINÁLOVÝ PAVOUK
B4: Weigert matyáš
C6: Weigert Matyáš
A7: Kynčl Jakub | C7: 4-3
B8: Kynčl Jakub
A9: Šebístková Tereza | B9: 4-1
D10: Michna Lisa
D11: 4-1
B12: Zýka Andreas
C14: Michna Lisa
C15: 4-2
B16: Michna Lisa
D18: Michna Lisa
D19: 4-1
B20: Zikmund Adam
C22: Zikmund Adam
C23: 3-0 scr
B24: Blaščík Matyáš
D26: Zikmund Adam
A27: Dvořák Jan | D27: 4-1
B28: Havlík Jan
A29: Havlík Jan | B29: 4-0
C30: Marešová Beata
C31: 4-1
B32: Marešová Beata

Sheet Pořadí chlapci
A1: POŘADÍ - SPARTA HEAD BABYTENIS TOUR LÉTO 2021 - CHLAPCI
A24: Pořadí | B24: Příjmení | C24: 1. turnaj | D24: 2. turnaj | E24: 3. turnaj | F24: 4. turnaj | G24: Masters | H24: Celkem
A25: 1. | B25: Weigert Matyáš | C25: 300 | D25: 250 | E25: 100 | F25: 200 | H25: =SUM(C25:G25) -> 850
A26: 2. | B26: Mrazek Richard | C26: 200 | D26: 200 | E26: 10 | F26: 20 | H26: =SUM(C26:F26) -> 430
A27: 3. | B27: Zikmund Adam | C27: 20 | D27: 20 | E27: 125 | F27: 250 | H27: =SUM(C27:G27) -> 415
A28: 4. | B28: Řehoř Benjamín | C28: 200 | D28: 200 | E28: 10 | F28: 0 | H28: 410
A29: 5. | B29: Blaščík Matyáš | C29: 0 | D29: 100 | E29: 100 | F29: 100 | H29: =SUM(C29:G29) -> 300
A30: 6.-7. | B30: Šuda Jakub | C30: 250 | D30: 0 | E30: 0 | F30: 0 | H30: 250
B31: Mikeš David | C31: 100 | D31: 0 | E31: 150 | F31: 0 | H31: 250
A32: 8. | B32: Motal David | C32: 10 | D32: 0 | E32: 150 | F32: 0 | H32: 160
A33: 9. | B33: Zýka Andreas | C33: 0 | D33: 0 | E33: 10 | F33: 100 | H33: =SUM(C33:F33) -> 110
A34: 10.-12. | B34: Krkoška Šimon | C34: 100 | D34: 0 | E34: 0 | F34: 0 | H34: 100
B35: Havlík Jan | C35: 0 | D35: 0 | E35: 0 | F35: 100 | H35: 100
B36: Kynčl Jakub | C36: 0 | D36: 0 | E36: 0 | F36: 100 | H36: 100
A37: 13.-14. | B37: Toman Bruno | C37: 20 | D37: 10 | E37: 10 | F37: 20 | H37: =SUM(C37:F37) -> 60
B38: Dvořák Jan | C38: 10 | D38: 0 | E38: 0 | F38: 50 | H38: 60
A39: 15. | B39: Bervid William | C39: 20 | D39: 0 | E39: 10 | F39: 0 | H39: 30
A40: 16. | B40: Říha Marek | C40: 0 | D40: 0 | E40: 0 | F40: 20 | H40: 20
A41: 17.- 21. | B41: Nedoma Nataniel | C41: 10 | D41: 0 | E41: 0 | F41: 0 | H41: 10
B42: Sklenička Vojtěch | C42: 0 | D42: 10 | E42: 0 | F42: 0 | H42: 10
B43: Wollner Filip | C43: 0 | D43: 0 | E43: 10 | F43: 0 | H43: 10
B44: Čihák Jakub | C44: 0 | D44: 0 | E44: 0 | F44: 10 | H44: 10
B45: Koláček Lukáš | C45: 0 | D45: 0 | E45: 0 | F45: 10 | H45: 10
A46: 22.- 28. | B46: Večeř Dominik | C46: 5 | D46: 0 | E46: 0 | F46: 0 | H46: 5
B47: Obyt Tobiáš | C47: 5 | D47: 0 | E47: 0 | F47: 0 | H47: 5
B48: Melša Petr | C48: 0 | D48: 5 | E48: 0 | F48: 0 | H48: 5
B49: Rabas Jáchym | C49: 0 | D49: 5 | E49: 0 | F49: 0 | H49: 5
B50: Roček Vilém | C50: 0 | D50: 0 | E50: 5 | F50: 0 | H50: 5
B51: Plecitý Vilém | C51: 0 | D51: 0 | E51: 5 | F51: 0 | H51: 5
B52: Ječmínek Ondřej | C52: 0 | D52: 0 | E52: 5 | F52: 0 | H52: 5
A53: 29. | B53: Hrubeš Martin | C53: 0 | D53: 0 | E53: 2,5 | F53: 0 | H53: 2,5

Sheet Pořadí dívky
A1: POŘADÍ - SPARTA HEAD BABYTENIS TOUR LÉTO 2021 - DÍVKY
A24: Pořadí | B24: Příjmení | C24: 1. turnaj | D24: 2. turnaj | E24: 3. turnaj | F24: 4. turnaj | G24: Masters | H24: Celkem
A25: 1. | B25: Marešová Beata | C25: 300 | D25: 300 | E25: 0 | F25: 200 | H25: =SUM(C25:G25) -> 800
A26: 2. | B26: Michna Lisa | C26: 250 | D26: 0 | E26: 125 | F26: 300 | H26: =SUM(C26:G26) -> 675
A27: 3. | B27: Jiráková Sofie | C27: 200 | D27: 0 | E27: 50 | F27: 0 | H27: =SUM(C27:G27) -> 250
A28: 4. | B28: Svoboda Adéla | C28: 100 | D28: 100 | E28: 5 | F28: 20 | H28: =SUM(C28:G28) -> 225
A29: 5. | B29: Nikodymová Kristýna | C29: 200 | D29: 20 | E29: 0 | F29: 0 | H29: =C29+D29 -> 220
A30: 6. | B30: Kurylova Nicole | C30: 100 | D30: 0 | E30: 100 | F30: 0 | H30: =SUM(C30:G30) -> 200
A31: 7. | B31: Šebístková Tereza | C31: 100 | D31: 0 | E31: 50 | F31: 50 | H31: =SUM(C31:G31) -> 200
A32: 8. | B32: Burešová Karolína | C32: 100 | D32: 20 | E32: 5 | F32: 0 | H32: =SUM(C32:G32) -> 125
A33: 9. | B33: Suchánková Nikola | C33: 0 | D33: 0 | E33: 100 | F33: 0 | H33: 100
A34: 10.- 11. | B34: Fiedlerová Enola | C34: 0 | D34: 0 | E34: 50 | F34: 0 | H34: 50
B35: Adamcová veronika | C35: 0 | D35: 0 | E35: 50 | F35: 0 | H35: 50
A36: 12. | B36: Kubíková Kateřina | C36: 20 | D36: 0 | E36: 0 | F36: 20 | H36: 40
A37: 13.- 15. | B37: Dušková Diana | C37: 20 | D37: 10 | E37: 0 | F37: 0 | H37: =C37+D37 -> 30
B38: Janouchová Nikola | C38: 20 | D38: 0 | E38: 0 | F38: 0 | H38: =C38+D38 -> 20
B39: Cajthamlová Anežka | C39: 20 | D39: 0 | E39: 0 | F39: 0 | H39: =C39+D39 -> 20
A40: 16.- 19. | B40: Klokočková Sára | C40: 10 | D40: 0 | E40: 0 | F40: 10 | H40: 20
B41: Plzáková Dominika | C41: 10 | D41: 0 | E41: 0 | F41: 10 | H41: 20
B42: Haskell Mia | C42: 10 | D42: 0 | E42: 0 | F42: 0 | H42: =C42+D42 -> 10
B43: Řízková Michaela | C43: 10 | D43: 0 | E43: 0 | F43: 0 | H43: =C43+D43 -> 10
A44: 20. | B44: Ziedlerová Elisabeth | C44: 0 | D44: 0 | E44: 0 | F44: 10 | H44: 10
A45: 21.- 23. | B45: Hugová Kateřina | C45: 0 | D45: 0 | E45: 5 | F45: 0 | H45: =SUM(C45:G45) -> 5
B46: Pospíšilová Anna | C46: 0 | D46: 0 | E46: 2.5 | F46: 0 | H46: 2.5
B47: Stejskalová Julie | C47: 0 | D47: 0 | E47: 2.5 | F47: 0 | H47: 2.5
B48: Mabouka Sofia | C48: 0 | D48: 0 | E48: 2.5 | F48: 0 | H48: 2.5
